Cogmind - Beta 12 X6 @@@ ROGUE MODE // 2023.01.26 @ 01:17:21 Player: Decinym Result: Self-destructed Performance ------------- Evolutions (6) 3000 Regions Visited (24) 4800 Robots Destroyed (385) 1925 Value Destroyed (16453) 16453 Prototype IDs (86) 1720 Alien Tech Used (1) 200 Bonus (9071) 9071 TOTAL SCORE: 37169 Bonus ------- Pacifist 200 Triggered High Security 500 High Alert Combat Kills 4659 Follower Combat Kills 735 Entered Garrisons 200 Aligned with FarCom 300 Met Imprinter 300 Destroyed Z-Imprinter 1000 Triggered Deep Caves Wall 500 Exposed GOLEM Chamber 500 Met Warlord at Base 500 MAIN.C Attacked Warlord 500 Friendly Fire -823 Cogmind --------- Core Integrity 130/1150 Matter 176/450 Energy 858/1600 System Corruption 12% Temperature Cool (0) Movement Walking (140) Location -4/Upper Caves Parts ------- > --- POWER (2) -------- (None) > --- PROPULSION (6) --- Makeshift Leg Makeshift Leg Makeshift Leg Improved Gyrokinetic Inverter > --- UTILITY (10) ----- Superbattery Compact Matter Pod Assembled Combat Suite Hardened Medium Armor Plating > --- WEAPON (2) ------- Thermic Laser Thermic Laser > --- INVENTORY (5) ---- Advanced Energy Well (500) Zionite Weapon Casing Master Tearclaws CR-A16's Behemoth Slayer Peak State ------------ > --- POWER ------------ Vortex Chain Reactor > --- PROPULSION ------- Advanced Myomer Leg Enhanced Biometal Leg Experimental Myomer Leg Experimental Myomer Leg Assembled Alloy Leg Assembled Alloy Leg > --- UTILITY ---------- Assembled Nanovents Assembled Nanovents Assembled Nanovents Huge Storage Unit Assembled Biocell Array Assembled Suspension Frame Assembled Combat Suite Assembled Alloy Armor GOLEM Unit > --- WEAPON ----------- Assembled Focal Cannon Assembled Focal Cannon > --- INVENTORY -------- Enhanced Flexi-carbon Leg Combat Gravmag System Combat Gravmag System Cooled Antigrav System Advanced Energy Well Superbattery Zionite Metafield Generator Experimental Signal Interpreter Surveybot 24 Scanner Surveybot 24 Chip Advanced Transmission Jammer Zionite Weapon Casing Hacking Drone Bay GOLEM Unit PSU Rigger HERF Cannon Compact Tesla Bomb Launcher Rocket Array Vortex Catalyst Activator Plasma Cutter Master Tearclaws CR-A16's Behemoth Slayer [Rating: 188] Favorites ----------- Power Fusion Reactor Engine Ion Engine Power Core Reinforced Fission Core Reactor Fusion Reactor Propulsion Advanced Myomer Leg Treads Light Treads Leg Advanced Myomer Leg Wheel Armored Wheel Hover Unit Combat Gravmag System Utility Experimental Core Analyzer Device Experimental Heat Sink Storage Huge Storage Unit Processor Experimental Core Analyzer Hackware Hacking Suite Protection Layered Medium Armor Plating Weapon Cooled Phase Cannon Energy Gun Advanced Beam Rifle Energy Cannon Cooled Phase Cannon Ballistic Gun Shotgun Ballistic Cannon Assault Cannon Launcher Rocket Launcher Special Weapon Plasma Flamer Impact Weapon Heavy Hammer Piercing Weapon CR-A16's Behemoth Slayer Build | -11 -10 -10 -9 -9 -9 -8 -8 -8 -7 -7 -7 -6 -6 -6 -6 -6 -5 -5 -5 -5 -5 -4 -4 -4 ------- Run | Jun Mat Min Mat Min Exi Min Mat Sto Fac Gar Fac Fac Low Low Zio Dee Pro Fac Upp Upp War Pro Fac Upp Slots Evolved 12 | . . . 2 . . . 2 . 2 . . 2 . . . . . 2 . . . . 2 . Power 1 | . . . . . . . . . . . . 1 . . . . . . . . . . . . Propulsion 3 | . . . 1 . . . . . 1 . . . . . . . . 1 . . . . . . Utility 8 | . . . 1 . . . 2 . 1 . . 1 . . . . . 1 . . . . 2 . Weapon . | . . . . . . . . . . . . . . . . . . . . . . . . . Parts Attached 381 | . 3 1 7 4 36 4 8 37 6 34 56 30 9 5 11 37 4 11 3 7 12 3 46 7 Power 19 | . . . . . 4 . . 1 . . 5 1 2 1 . 2 . . . . 1 . 2 . Engine 7 | . . . . . 3 . . . . . 2 1 1 . . . . . . . . . . . Core 5 | . . . . . 1 . . 1 . . 1 . . 1 . . . . . . . . 1 . Reactor 7 | . . . . . . . . . . . 2 . 1 . . 2 . . . . 1 . 1 . Propulsion 85 | . . . 3 1 8 . 2 13 1 13 11 . 1 . 1 4 . 2 1 . 3 2 16 3 Treads 37 | . . . 3 1 8 . 2 12 1 6 4 . . . . . . . . . . . . . Leg 29 | . . . . . . . . . . . 5 . 1 . 1 4 . 2 1 . 3 1 8 3 Wheel 8 | . . . . . . . . . . 7 1 . . . . . . . . . . . . . Hover 11 | . . . . . . . . 1 . . 1 . . . . . . . . . . 1 8 . Flight . | . . . . . . . . . . . . . . . . . . . . . . . . . Utility 153 | . 1 1 2 . 12 1 3 12 1 5 16 20 6 2 5 21 2 8 . 3 7 . 23 2 Device 63 | . 1 . 1 . 8 1 . 2 . 3 4 6 3 . . 11 1 3 . 1 5 . 13 . Storage 18 | . . 1 . . 2 . . 1 . . 3 2 . . 1 2 . 1 . 1 . . 3 1 Processor 19 | . . . . . 2 . 1 1 . 1 2 3 2 . 4 . . . . . 1 . 2 . Hackware 7 | . . . . . . . . 1 . . 1 1 . . . . . 3 . . . . 1 . Protection 46 | . . . 1 . . . 2 7 1 1 6 8 1 2 . 8 1 1 . 1 1 . 4 1 Artifact . | . . . . . . . . . . . . . . . . . . . . . . . . . Weapon 124 | . 2 . 2 3 12 3 3 11 4 16 24 9 . 2 5 10 2 1 2 4 1 1 5 2 Energy Gun 26 | . . . . . 1 . 1 4 2 7 6 . . . . 2 1 . . . . . . 2 Energy Cannon 26 | . . . . . . . . 2 . 1 6 5 . 1 3 5 . 1 1 1 . . . . Ballistic Gun 30 | . 2 . 2 1 8 1 1 3 1 3 8 . . . . . . . . . . . . . Ballistic Cannon 2 | . . . . 2 . . . . . . . . . . . . . . . . . . . . Launcher 23 | . . . . . 2 1 . 2 1 1 4 4 . 1 . 2 . . 1 1 . . 3 . Special Weapon 5 | . . . . . 1 1 1 . . . . . . . 1 1 . . . . . . . . Impact Weapon 5 | . . . . . . . . . . 4 . . . . 1 . . . . . . . . . Slashing Weapon . | . . . . . . . . . . . . . . . . . . . . . . . . . Piercing Weapon 7 | . . . . . . . . . . . . . . . . . 1 . . 2 1 1 2 . Special Melee Weapon . | . . . . . . . . . . . . . . . . . . . . . . . . . Unidentified Prototypes 46 | . . . . . 7 . . 4 . . 9 1 1 . 2 11 . . . 1 6 . 4 . Corrupted Parts 3 | . . . . . . . . 2 . . . . . . . . . . . . . 1 . . System Corruption 11 | . . . . . . . . 4 . . . . . . . . . . . . . 7 . . Parts Lost 74 | . . . . . 16 . . 4 . 4 10 1 1 . . 6 . 1 . 3 . . 28 . Power 6 | . . . . . 2 . . . . . 2 . . . . . . . . . . . 2 . Propulsion 23 | . . . . . 5 . . 2 . 1 4 . . . . . . . . . . . 11 . Utility 32 | . . . . . 4 . . 1 . 3 2 1 1 . . 5 . . . 1 . . 14 . Weapon 13 | . . . . . 5 . . 1 . . 2 . . . . 1 . 1 . 2 . . 1 . Highest Loss Streak 10 | . . . . . 7 . . 2 . 2 10 1 1 . . 4 . 1 . 3 . . 9 . To Critical Strikes 11 | . . . . . 10 . . . . . . . . . . . . . . . . . 1 . Average Slot Usage (%) 93 | . 98 100 97 100 92 100 97 95 94 98 94 96 99 100 98 92 93 93 90 89 87 87 81 22 Engine 2 | . 14 14 11 11 6 . . . . . 3 3 6 4 . . . . . . . . . . Core 2 | . . . . . 4 11 9 8 7 7 . . . 1 6 1 . . . . . . . . Reactor 3 | . . . . . . . . . . . 2 6 6 6 6 7 6 5 5 5 5 5 4 . Treads 11 | . . . 33 33 33 33 27 26 30 12 6 . . . . . . . . . . . . . Leg 17 | . 28 28 . . . . . . . . 12 26 27 31 30 30 31 32 29 33 33 32 24 4 Wheel 1 | . . . . . . . . . . 17 8 . . . . . . . . . . . . . Device 11 | . 12 14 11 11 7 2 9 9 7 16 7 16 19 15 12 10 13 11 11 9 8 11 22 5 Storage 9 | . 14 14 11 11 11 11 9 9 7 7 7 6 6 6 6 9 12 11 11 11 11 11 9 5 Processor 10 | . . . . . 5 20 15 11 15 15 15 16 16 15 14 13 12 11 11 11 11 10 2 . Protection 5 | . . . 8 11 4 . 9 9 9 5 8 6 2 4 9 5 4 5 5 5 4 4 6 . Energy Gun 3 | . . . . . . . 2 16 13 10 6 . . . . 1 5 2 . . 3 . . 2 Energy Cannon 5 | . . . . . . . . . . . 4 12 12 12 10 9 6 8 10 7 6 9 7 . Ballistic Gun 4 | . 28 28 22 3 12 6 11 1 . 2 2 . . . . . . . . . . . . . Naked Turns . | . . . . . . . . . . . . . . . . . . . . . . . . . Heaviest Build 167 | 13 18 53 55 60 76 68 75 120 120 124 124 120 107 102 139 146 146 160 160 160 157 157 167 23 Greatest Support 190 | 20 20 20 60 60 60 60 60 62 82 82 120 120 148 148 148 146 146 170 170 170 171 170 190 60 Greatest Overweight (x) 10 | . . 2 . . 1 1 1 1 1 10 5 . . . 1 1 . . 1 . . 1 4 . Average Overweight (x) . | . . 1 . . . 1 1 . 1 3 1 . . . . . . . . . . . . . Largest Inventory Capacity 25 | . 8 20 20 20 20 20 20 25 25 25 25 25 20 20 25 25 25 25 25 25 25 25 25 5 Average Capacity 22 | . 8 19 20 20 20 20 20 22 25 25 23 21 20 20 24 25 25 25 25 25 25 25 22 5 Most Carried 25 | . 7 8 19 20 20 20 20 25 25 25 25 25 20 20 25 25 25 25 25 25 25 25 25 5 Average Carried 20 | . 6 7 12 19 17 20 19 21 24 24 19 19 19 19 23 24 25 24 25 24 24 24 21 5 Final Capacity 25 | 8 8 20 20 20 20 20 20 25 25 25 25 20 20 20 25 25 25 25 25 25 25 25 5 5 Final Carried 25 | 6 7 8 19 20 20 20 20 25 25 25 16 20 20 20 25 25 25 25 25 24 25 25 5 5 Class Distribution -------------------- 48% | Mutant 31% | Scavenger-Mutant 10% | Golem 3% | Commander-Golem 3% | Skirmisher Dominant Class ---------------- Mutant | -10/Materials Mutant | -10/Mines Mutant | -9/Materials Mutant | -9/Mines Scavenger-Mutant | -9/Exiles Scavenger-Mutant | -8/Mines Scavenger-Mutant | -8/Materials Scavenger-Mutant | -8/Storage Scavenger-Mutant | -7/Factory Scavenger-Mutant | -7/Garrison Mutant | -7/Factory Mutant | -6/Factory Skirmisher | -6/Lower Caves Mutant | -6/Lower Caves Mutant | -6/Zion Mutant | -6/Deep Caves Mutant | -5/Proximity Caves Mutant | -5/Factory Mutant | -5/Upper Caves Mutant | -5/Upper Caves Commander-Golem | -5/Warlord Golem | -4/Proximity Caves Golem | -4/Factory Mutant | -4/Upper Caves Resources | -11 -10 -10 -9 -9 -9 -8 -8 -8 -7 -7 -7 -6 -6 -6 -6 -6 -5 -5 -5 -5 -5 -4 -4 -4 ----------- Run | Jun Mat Min Mat Min Exi Min Mat Sto Fac Gar Fac Fac Low Low Zio Dee Pro Fac Upp Upp War Pro Fac Upp Matter Collected 6298 | 200 . 27 134 198 1106 78 150 502 112 535 833 487 100 90 100 465 71 109 89 47 222 30 516 97 Remotely . | . . . . . . . . . . . . . . . . . . . . . . . . . Salvage Created 19415 | . . . 258 224 497 50 310 1914 321 1380 2707 2244 484 774 . 1672 90 718 247 573 . 87 4793 72 Parts 1024 | . . . 18 12 78 8 20 114 15 57 143 103 22 44 . 29 7 57 12 33 . 3 247 2 Haulers Intercepted 13 | . . . 1 . . . . 6 . . 3 . . . . . . . . . . . 3 . Recyclers Shooed 7 | . . . . . . . . 1 . . 3 3 . . . . . . . . . . . . Parts Field Recycled . | . . . . . . . . . . . . . . . . . . . . . . . . . Retrieved Matter . | . . . . . . . . . . . . . . . . . . . . . . . . . Parts Self-Destructed 75 | . . . . . . . . . . . . . 15 14 . . 6 . 10 25 . 5 . . Prevented 3 | . . . . . . . . . . . . . . . . . . . 3 . . . . . Kills | -11 -10 -10 -9 -9 -9 -8 -8 -8 -7 -7 -7 -6 -6 -6 -6 -6 -5 -5 -5 -5 -5 -4 -4 -4 ------- Run | Jun Mat Min Mat Min Exi Min Mat Sto Fac Gar Fac Fac Low Low Zio Dee Pro Fac Upp Upp War Pro Fac Upp Combat Hostiles Destroyed 308 | . . . 4 7 4 8 4 27 4 29 46 29 10 16 . 16 1 10 8 20 . 2 63 . Melee 1 | . . . . . . . . . . . . . . . . . 1 . . . . . . . Guns 81 | . . . 4 3 2 . 3 19 3 26 21 . . . . . . . . . . . . . Cannons 131 | . . . . 4 . 2 1 3 . . 5 12 10 11 . 11 . 9 4 10 . 1 48 . AOE 77 | . . . . . 2 5 . 5 1 3 17 13 . 4 . 2 . . 4 9 . . 12 . Classes Destroyed 27 | . . . 4 2 3 . 3 3 . 1 3 1 1 1 . 3 1 . . . . . 1 . Worker 14 | . . . 1 . . . . 1 1 . 5 2 . . . . . . . . . . 4 . Builder 15 | . . . . . . . . 3 . . 5 3 . . . . . 2 . . . . 2 . Tunneler 1 | . . . . . . . . . . . . . . . . . . . . . . . 1 . Hauler 13 | . . . 1 . . . . 6 . . 3 . . . . . . . . . . . 3 . Recycler 12 | . . . . . . . 1 2 1 . 6 1 . . . . . 1 . . . . . . Mechanic 2 | . . . . . . . . 1 . . . 1 . . . . . . . . . . . . Operator 8 | . . . . . . . 1 . . 1 . 1 . . . . . 2 . . . . 3 . Turret 1 | . . . . . 1 . . . . . . . . . . . . . . . . . . . Watcher 14 | . . . . . . . 1 2 . . 3 2 . . . . . 2 . . . . 4 . Swarmer 62 | . . . . 3 . 7 . . . 10 6 6 2 . . . . 4 6 17 . 1 . . Grunt 95 | . . . 1 3 . 1 2 14 1 6 16 13 4 6 . . . . 1 1 . . 26 . Brawler 9 | . . . . 1 . . . . . . 2 2 1 1 . . . . . . . . 2 . Duelist 5 | . . . . . . . . 1 . . 2 . . . . . . . . . . . 2 . Protector 5 | . . . . . . . . . . . 3 1 . . . . . . . . . . 1 . Sentry 48 | . . . 3 . . . 2 12 3 8 5 4 1 . . . . 1 1 1 . . 7 . Specialist 6 | . . . . . . . . . . . 5 . . . . . . . . . . . 1 . Hunter 16 | . . . . . . . . . . . 4 . . . . . . 2 . . . . 10 . Programmer 26 | . . . . . . . . . . 5 3 2 1 . . . . 3 . . . . 12 . Heavy 2 | . . . . . . . . . . . . 1 . . . . . . . . . . 1 . Behemoth 5 | . . . . . . . . . . . . . . . . . 1 . . 1 . 1 2 . Zionite 6 | . . . . . 6 . . . . . . . . . . . . . . . . . . . Z-Light 4 | . . . . . . . . . . . . . . . . 4 . . . . . . . . Master Thief 3 | . . . . . . . . . . . . . 1 2 . . . . . . . . . . Assembler 2 | . . . . . . . . . . . . . . . . 2 . . . . . . . . Assembled 6 | . . . . . 3 . . . . . . . . . . 3 . . . . . . . . Golem 9 | . . . . . . . . . . . . . . . . 9 . . . . . . . . Thug 2 | . . . . . . . . . . . . . . 1 . 1 . . . . . . . . Savage 6 | . . . . . . . . . . . . . . 5 . . . . . . . . . 1 Mutant 1 | . . . . . . . . . . . . . . 1 . . . . . . . . . . Best Kill Streak 16 | . . . 2 3 4 6 4 6 4 7 12 12 5 5 . 6 1 6 5 10 . 1 16 . Combat Bots Only 11 | . . . 2 3 2 6 2 3 2 7 9 10 5 5 . 6 1 4 5 10 . 1 11 . Max Kills in Single Turn 5 | . . . 1 2 2 4 1 3 1 2 5 4 1 3 . 3 1 2 3 3 . 1 4 1 Gunslinging 1 | . . . . 1 . . . . . . . . . . . . . . . . . . . . Exploded 4 | . . . . . 2 4 . 2 1 2 4 3 . 3 . 1 . . 3 3 . . 4 . Melee 1 | . . . . . . . . . . . . . . . . . 1 . . . . . . . Uniques/NPCs Destroyed 5 | . . . . . 4 . . . . . . . . . . 1 . . . . . . . . 8R-AWN (-9/Exiles) EX-BIN (-9/Exiles) EX-DEC (-9/Exiles) EX-HEX (-9/Exiles) Z-Imprinter (-6/Deep Caves) Combat | -11 -10 -10 -9 -9 -9 -8 -8 -8 -7 -7 -7 -6 -6 -6 -6 -6 -5 -5 -5 -5 -5 -4 -4 -4 -------- Run | Jun Mat Min Mat Min Exi Min Mat Sto Fac Gar Fac Fac Low Low Zio Dee Pro Fac Upp Upp War Pro Fac Upp Damage Taken 21651 | . . . 159 128 1747 204 77 1506 377 1838 3869 1422 135 377 . 1351 254 725 111 762 8 405 6196 . Core 2971 | . . . . 22 248 . 17 244 33 202 453 177 20 124 . 213 23 42 15 80 . 38 1020 . Absorbed by Shields 1614 | . . . 61 52 535 . . . . 343 . 59 240 80 . 32 . . . . 7 83 122 . Redirected to Shielding 233 | . . . . . . . . 82 . . . . . 16 . 135 . . . . . . . . Regen/Repaired (Parts) 800 | . . . . . . . . 271 . . 322 . . . . . . 131 . . 76 . . . Core Remaining (%) 57 | 100 . 100 . . . 32 . 52 . . 1 . . . . . 34 . . . . 82 . . Volleys Fired 848 | . . . 10 13 145 11 10 96 18 57 67 60 21 33 1 72 9 27 8 18 5 2 159 6 Largest 2 | . . . 2 2 2 2 2 2 2 2 2 2 2 2 1 2 2 2 2 2 2 2 2 2 Hottest 240 | . . . 46 88 98 123 123 122 117 160 240 240 80 240 40 100 85 85 65 65 50 50 50 170 Shots Fired 1481 | . . . 20 26 191 15 19 187 32 129 211 92 42 64 1 88 18 56 14 30 6 4 224 12 Gun 763 | . . . 20 11 177 4 17 173 28 126 179 . . . . 2 9 5 . . . . . 12 Cannon 628 | . . . . 15 . . . 9 . 1 24 72 42 62 1 75 9 51 12 26 6 4 219 . Launcher 74 | . . . . . 14 2 . 5 4 2 8 20 . 2 . 6 . . 2 4 . . 5 . Special 16 | . . . . . . 9 2 . . . . . . . . 5 . . . . . . . . Kinetic 418 | . . . 20 26 158 4 15 28 . 62 105 . . . . . . . . . . . . . Thermal 936 | . . . . . 19 9 4 145 28 64 98 72 42 62 1 53 9 51 12 26 6 4 219 12 Explosive 45 | . . . . . 14 2 . 5 4 2 8 . . 2 . 2 . . 2 4 . . . . Electromagnetic 61 | . . . . . . . . 9 . 1 . 20 . . . 31 . . . . . . . . Entropic 5 | . . . . . . . . . . . . . . . . . . . . . . . 5 . Phasic 16 | . . . . . . . . . . . . . . . . 2 9 5 . . . . . . Robot Hit Streak 26 | . . . 10 7 12 8 5 14 14 26 17 8 8 10 . 22 5 10 4 5 2 1 25 4 Robot Miss Streak 6 | . . . 2 2 6 1 2 3 1 4 3 6 3 3 . 4 1 2 4 4 . 2 2 2 Penetration Max 1 | . . . . . 1 . 1 . . . 1 . . . . . . . . . . . . . Secondary Targets 7 | . . . . 1 . . . 2 . 3 1 . . . . . . . . . . . . . Max Gunslinging Chain 1 | . . . . 1 . . . 1 . 1 1 . . . . . . . . . . . . . Capacitor 84 | . . . . . . . . . . . . . . . . . . . . . . . 84 . Autonomous 108 | . . . . . . . . . . 22 86 . . . . . . . . . . . . . Shots Hit Robots 1007 | . . . 14 13 134 12 14 114 25 114 152 47 23 43 . 59 8 33 7 12 2 2 173 6 Core Hits 824 | . . . 9 9 45 10 10 65 13 88 127 64 15 39 . 132 3 18 12 25 . 1 137 2 Critical Kills 10 | . . . . . 3 . 3 . . 2 1 . . . . . . 1 . . . . . . Critical Parts Destroyed 16 | . . . . . 13 . 1 . . . 2 . . . . . . . . . . . . . Critical Strikes 47 | . . . . . 17 2 4 8 . 2 11 . . . . . 1 1 . . . . . 1 Burn 20 | . . . . . 1 2 . 8 . . 8 . . . . . . . . . . . . 1 Meltdown 1 | . . . . . . . . . . . . . . . . . . 1 . . . . . . Destroy 25 | . . . . . 16 . 4 . . 2 3 . . . . . . . . . . . . . Impale 1 | . . . . . . . . . . . . . . . . . 1 . . . . . . . Melee Attacks 34 | . . . . . . . . . . 8 . . . . 5 . 1 . . 1 11 3 5 . Impact 13 | . . . . . . . . . . 8 . . . . 5 . . . . . . . . . Slashing . | . . . . . . . . . . . . . . . . . . . . . . . . . Piercing 21 | . . . . . . . . . . . . . . . . . 1 . . 1 11 3 5 . Sneak Attacks 1 | . . . . . . . . . . 1 . . . . . . . . . . . . . . Combat Hostiles . | . . . . . . . . . . . . . . . . . . . . . . . . . Follow-up Attacks . | . . . . . . . . . . . . . . . . . . . . . . . . . Damage Inflicted 43616 | . . 13 260 304 2822 411 229 2647 691 2794 6731 3770 878 2302 . 4581 350 1810 396 945 68 88 11418 108 Guns 11924 | . . . 245 63 2233 63 215 1966 403 2503 3894 . . . . . 99 132 . . . . . 108 Cannons 17682 | . . . . 217 . . . 165 . . 540 1575 878 1693 . 2000 220 1441 250 576 68 88 7971 . Explosions 13242 | . . . . . 546 244 . 497 288 230 2291 2121 . 609 . 2544 . . 146 369 . . 3357 . Melee 87 | . . . . . . . . . . 56 . . . . . . 31 . . . . . . . Ramming 527 | . . 13 15 24 43 1 . 19 . 5 6 74 . . . . . 237 . . . . 90 . Kinetic 6804 | . . . 245 280 1955 63 186 342 . 1027 2706 . . . . . . . . . . . . . Thermal 22757 | . . . . . 278 103 43 1624 403 1476 2153 1728 878 1693 . 1656 220 1441 250 576 68 88 7971 108 Explosive 7236 | . . . . . 546 244 . 497 288 230 1866 . . 609 . 2135 . . 146 369 . . 306 . Electromagnetic 3254 | . . . . . . . . 165 . . . 1968 . . . 790 . . . . . . 331 . Impact 56 | . . . . . . . . . . 56 . . . . . . . . . . . . . . Slashing . | . . . . . . . . . . . . . . . . . . . . . . . . . Piercing 31 | . . . . . . . . . . . . . . . . . 31 . . . . . . . Entropic 2720 | . . . . . . . . . . . . . . . . . . . . . . . 2720 . Phasic 231 | . . . . . . . . . . . . . . . . . 99 132 . . . . . . Highest Corruption 12 | . . . . . 5 . . 2 . 3 4 . . 4 4 3 3 3 3 3 3 7 8 12 Average Corruption 3 | . . . . . 1 . . 1 . 2 3 . . 3 4 3 3 2 3 3 3 7 2 12 Corruption Purged 9 | . . . . . 5 . . 4 . . . . . . . . . . . . . . . . Corruption Blocked 1 | . . . . . . . . . . . . . . . . . . . . . 1 . . . Effects 213 | . . . . . 8 . . . . 15 49 . . 5 . 40 11 17 10 12 1 16 24 5 Message Errors 57 | . . . . . 2 . . . . 3 11 . . 3 . 12 3 5 3 2 . 4 7 2 Matter Fused 45 | . . . . . 2 . . . . 3 12 . . . . 7 2 4 2 2 . 2 6 3 Heat Flow Errors 17 | . . . . . 1 . . . . 3 1 . . . . 7 2 1 . . . 1 1 . Energy Discharges 25 | . . . . . . . . . . 1 9 . . . . 4 2 2 1 . . 3 3 . Parts Rejected 5 | . . . . . . . . . . . . . . . . 1 . . 1 1 . . 2 . Data Loss (minor) 31 | . . . . . 2 . . . . 1 8 . . 2 . 4 2 1 1 5 1 4 . . Data Loss (major) 17 | . . . . . . . . . . 2 6 . . . . 1 . 2 1 . . 2 3 . Misfires 8 | . . . . . 1 . . . . 1 . . . . . 2 . 2 . 1 . . 1 . Alerts 4 | . . . . . . . . . . . 2 . . . . . . . 1 1 . . . . Weapon Failures 4 | . . . . . . . . . . 1 . . . . . 2 . . . . . . 1 . Overload Shots 17 | . . . . . . . . . . . 5 4 . 8 . . . . . . . . . . Effects 1 | . . . . . . . . . . . 1 . . . . . . . . . . . . . Heat Surge 1 | . . . . . . . . . . . 1 . . . . . . . . . . . . . Overflow Damage 1060 | . . . . . . . . . 1 41 67 66 38 56 . 69 . 227 18 14 . . 463 . Projectiles 778 | . . . . . . . . . . . 28 31 38 56 . 33 . 206 18 14 . . 354 . Explosions 162 | . . . . . . . . . 1 . 39 22 . . . 36 . . . . . . 64 . Melee 120 | . . . . . . . . . . 41 . 13 . . . . . 21 . . . . 45 . Knockbacks 5 | . . . . . 1 . . . . . . 1 . . . . . 2 . . . . 1 . Impact 5 | . . . . . 1 . . . . . . 1 . . . . . 2 . . . . 1 . Kinetic . | . . . . . . . . . . . . . . . . . . . . . . . . . Secondary . | . . . . . . . . . . . . . . . . . . . . . . . . . Self-Inflicted Damage 891 | . . . . . 31 . . 49 . . 271 70 . 24 . 8 . . 38 98 . . 302 . Shots 26 | . . . . . 1 . . 1 . . 7 5 . 1 . 1 . . 2 4 . . 4 . Rammed 21 | . . . . 2 14 1 . 1 . 1 1 . . . . . . . . . . . 1 . Targets Rammed 45 | . . 4 1 2 14 1 . 3 . 1 2 4 . . . . . 11 . . . . 2 . Kicked 21 | . . 4 . . . . . . . . 1 4 . . . . . 11 . . . . 1 . Crushed 3 | . . . 1 . . . . 2 . . . . . . . . . . . . . . . . Highest Temperature 536 | . . . 3 81 295 188 57 114 24 246 536 87 34 354 . 252 226 155 . . . 177 184 234 Average Temperature 69 | . . . 3 32 123 80 35 33 12 27 107 38 17 83 . 101 98 98 . . . 99 69 120 Received Heat Transfer 3278 | . . . 56 34 . 63 36 666 129 237 672 278 48 42 . 227 36 18 . 66 3 43 624 . Effects 9 | . . . . . . . . . . . 8 . . 1 . . . . . . . . . . Shutdowns 1 | . . . . . . . . . . . 1 . . . . . . . . . . . . . Energy Bleed 3 | . . . . . . . . . . . 2 . . 1 . . . . . . . . . . Interference 2 | . . . . . . . . . . . 2 . . . . . . . . . . . . . Matter Decay 2 | . . . . . . . . . . . 2 . . . . . . . . . . . . . Damage (minor) 1 | . . . . . . . . . . . 1 . . . . . . . . . . . . . Siege Activations . | . . . . . . . . . . . . . . . . . . . . . . . . . Robots Corrupted 8 | . . . . . . . . . . . . 4 . . . 3 . . . . . . 1 . Combat Hostiles 8 | . . . . . . . . . . . . 4 . . . 3 . . . . . . 1 . Parts Fried 21 | . . . . . . . . 2 . 3 . 14 . . . 2 . . . . . . . . Impact Corruptions 6 | . . . . . . . . . . 1 . 1 . . . . . 2 . . . . 2 . Robots Melted 6 | . . . . . . 1 . . . . 2 . . 1 . . . 1 . . . . . 1 Combat Hostiles 5 | . . . . . . 1 . . . . 2 . . 1 . . . 1 . . . . . . Parts Melted 52 | . . . . . . . . 9 1 4 13 6 1 . . 2 . 5 . 1 . 2 7 1 Heat Transferred 24684 | . . . . . 163 960 154 3811 814 3085 3564 1719 888 1619 . 1383 100 955 186 434 50 50 4349 400 Parts Sabotaged 1 | . . . . . . . . . . . . . . . . . . . . . . . 1 . Parts Stolen 2 | . . . . . . . . . . . . . 1 1 . . . . . . . . . . Parts Stripped . | . . . . . . . . . . . . . . . . . . . . . . . . . Power Chain Reactions 3 | . . . . . . . . . . . . 2 . . . 1 . . . . . . . . Missiles Intercepted . | . . . . . . . . . . . . . . . . . . . . . . . . . Alert | -11 -10 -10 -9 -9 -9 -8 -8 -8 -7 -7 -7 -6 -6 -6 -6 -6 -5 -5 -5 -5 -5 -4 -4 -4 ------- Run | Jun Mat Min Mat Min Exi Min Mat Sto Fac Gar Fac Fac Low Low Zio Dee Pro Fac Upp Upp War Pro Fac Upp Peak Influence 2343 | . . . 185 138 . 252 205 469 266 1068 1733 1268 . . . . . 277 . . . . 2343 . Initial 849 | . . . . 1 . . 20 86 100 186 560 849 . . . . . . . . . . . . Average 508 | . . . 84 38 . 142 128 206 148 738 1065 919 . . . . . 86 . . . . 895 . Maximum Alert Level 5 | . . . . . . 1 1 2 1 3 5 4 . . . . . 1 . . . . 5 . Low Security (%) 41 | . 100 100 100 100 . 84 74 47 76 1 . . . . . . . 90 . . . . 8 . Level 1 14 | . . . . . . 15 25 47 23 11 . . . . . . . 9 . . . . 21 . Level 2 9 | . . . . . . . . 5 . 29 25 . . . . . . . . . . . 17 . Level 3 21 | . . . . . . . . . . 57 29 88 . . . . . . . . . . 16 . Level 4 8 | . . . . . . . . . . . 29 11 . . . . . . . . . . 20 . Level 5 2 | . . . . . . . . . . . 15 . . . . . . . . . . . . . High Security 2 | . . . . . . . . . . . . . . . . . . . . . . . 15 . Max Security . | . . . . . . . . . . . . . . . . . . . . . . . . . Squads Dispatched 50 | . . . . 1 . . 1 4 4 . 9 7 . . . . . 4 . . . . 20 . Investigation 6 | . . . . . . . . 3 1 . 1 . . . . . . . . . . . 1 . Extermination 11 | . . . . . . . . . . . 2 3 . . . . . 2 . . . . 4 . Reinforcement 14 | . . . . . . . 1 . . . 3 2 . . . . . 2 . . . . 6 . Assault 16 | . . . . 1 . . . 1 . . 3 2 . . . . . . . . . . 9 . Garrison 3 | . . . . . . . . . 3 . . . . . . . . . . . . . . . Intercept . | . . . . . . . . . . . . . . . . . . . . . . . . . Searches Triggered . | . . . . . . . . . . . . . . . . . . . . . . . . . Construction Impeded 2 | . . . . . . . . . . . 1 1 . . . . . . . . . . . . Haulers Reinforced 3 | . . . . . . . . . . . 1 . . . . . . . . . . . 2 . Active Scanning Responses . | . . . . . . . . . . . . . . . . . . . . . . . . . Cargo Convoy Interrupts 2 | . . . . . . . . . . . 1 . . . . . . 1 . . . . . . Stealth | -11 -10 -10 -9 -9 -9 -8 -8 -8 -7 -7 -7 -6 -6 -6 -6 -6 -5 -5 -5 -5 -5 -4 -4 -4 --------- Run | Jun Mat Min Mat Min Exi Min Mat Sto Fac Gar Fac Fac Low Low Zio Dee Pro Fac Upp Upp War Pro Fac Upp Distress Signals 11 | . . . . . . 1 1 1 . . . 4 . . . . . 2 . . . . 2 . Communications Jammed 39 | . . . . . . . . . . . . . . . . . . . . . . . 39 . Distress Signals 39 | . . . . . . . . . . . . . . . . . . . . . . . 39 . Times Spotted 573 | . . . 6 13 66 10 8 37 7 30 76 45 11 18 . 61 1 19 7 21 7 5 125 . Peak Tracking Total 33 | . . . 2 4 9 7 4 5 2 4 11 6 5 5 . 33 1 7 5 9 3 4 17 . Tactical Retreats 44 | . . . . . 24 2 . . 2 . 2 2 . . . . . 2 . 1 . 1 8 . Traps | -11 -10 -10 -9 -9 -9 -8 -8 -8 -7 -7 -7 -6 -6 -6 -6 -6 -5 -5 -5 -5 -5 -4 -4 -4 ------- Run | Jun Mat Min Mat Min Exi Min Mat Sto Fac Gar Fac Fac Low Low Zio Dee Pro Fac Upp Upp War Pro Fac Upp Traps Triggered 19 | . . . 1 . . . . 2 1 3 2 2 . . . . . 4 . . . . 4 . Indirectly 2 | . . . . . . . . . . . . 1 . . . . . . . . . . 1 . Trap Hack Attempts . | . . . . . . . . . . . . . . . . . . . . . . . . . Triggered . | . . . . . . . . . . . . . . . . . . . . . . . . . Disarmed . | . . . . . . . . . . . . . . . . . . . . . . . . . Reprogrammed . | . . . . . . . . . . . . . . . . . . . . . . . . . Reused . | . . . . . . . . . . . . . . . . . . . . . . . . . Traps Extracted . | . . . . . . . . . . . . . . . . . . . . . . . . . Installed . | . . . . . . . . . . . . . . . . . . . . . . . . . Triggered 15 | . . . . . . . . . . . . . . . . . . 2 1 . 12 . . . Exploded 3 | . . . . . 3 . . . . . . . . . . . . . . . . . . . Machines | -11 -10 -10 -9 -9 -9 -8 -8 -8 -7 -7 -7 -6 -6 -6 -6 -6 -5 -5 -5 -5 -5 -4 -4 -4 ---------- Run | Jun Mat Min Mat Min Exi Min Mat Sto Fac Gar Fac Fac Low Low Zio Dee Pro Fac Upp Upp War Pro Fac Upp Machines Disabled 64 | . . . . . 13 . . 7 . 4 13 7 1 . . 2 . 1 . . 1 . 15 . Max in Single Turn 4 | . . . . . 2 . . 1 . 1 4 1 1 . . . . 1 . . 1 . 3 . Garrison Relay 2 | . . . . . . . . . . 2 . . . . . . . . . . . . . . Machines Repaired . | . . . . . . . . . . . . . . . . . . . . . . . . . Machines Sabotaged . | . . . . . . . . . . . . . . . . . . . . . . . . . Overloaded Fab Kills . | . . . . . . . . . . . . . . . . . . . . . . . . . Hacking | -11 -10 -10 -9 -9 -9 -8 -8 -8 -7 -7 -7 -6 -6 -6 -6 -6 -5 -5 -5 -5 -5 -4 -4 -4 --------- Run | Jun Mat Min Mat Min Exi Min Mat Sto Fac Gar Fac Fac Low Low Zio Dee Pro Fac Upp Upp War Pro Fac Upp Machines Accessed 47 | . 1 . 1 . 2 . . 9 1 1 6 5 1 . 1 . . 6 1 . 3 . 8 1 Terminals 22 | . 1 . 1 . . . . 7 . 1 2 3 . . . . . 2 1 . . . 4 . Fabricators 8 | . . . . . . . . . . . 2 2 . . . . . 2 . . . . 2 . Repair Stations 5 | . . . . . . . . 2 . . 2 . . . . . . 1 . . . . . . Recycling Units . | . . . . . . . . . . . . . . . . . . . . . . . . . Scanalyzers 2 | . . . . . . . . . . . . . . . . . . 1 . . . . 1 . Garrison Access 2 | . . . . . . . . . 1 . . . . . . . . . . . . . 1 . Total Hacks 119 | . 3 . 1 . 2 . . 26 2 2 19 12 1 . 7 . . 14 1 . 8 . 20 1 Successful 63 | . . . 1 . 2 . . 17 1 1 10 5 1 . 7 . . 6 1 . 8 . 2 1 Failed 56 | . 3 . . . . . . 9 1 1 9 7 . . . . . 8 . . . . 18 . Catastrophic 18 | . . . . . . . . 3 . 1 1 3 . . . . . 4 . . . . 6 . Database Lockouts . | . . . . . . . . . . . . . . . . . . . . . . . . . Manual 45 | . 3 . 1 . 1 . . 7 . 1 6 8 . . 1 . . 7 . . . . 10 . Terminals 55 | . 3 . 1 . . . . 18 . 2 5 7 . . . . . 5 1 . . . 13 . Fabricators 19 | . . . . . . . . . . . 5 5 . . . . . 6 . . . . 3 . Repair Stations 19 | . . . . . . . . 8 . . 9 . . . . . . 2 . . . . . . Recycling Units . | . . . . . . . . . . . . . . . . . . . . . . . . . Scanalyzers 4 | . . . . . . . . . . . . . . . . . . 1 . . . . 3 . Garrison Access 3 | . . . . . . . . . 2 . . . . . . . . . . . . . 1 . Terminal Hacks 36 | . . . 1 . 2 . . 10 . 1 . 2 1 . 7 . . 2 1 . 8 . . 1 Record 4 | . . . . . 1 . . . . . . . . . . . . . 1 . 2 . . . Part Schematic 10 | . . . . . . . . 3 . . . . . . 7 . . . . . . . . . Prototype ID Bank 5 | . . . . . . . . . . . . . . . . . . . . . 5 . . . Open Door 5 | . . . . . . . . 2 . . . . 1 . . . . . . . 1 . . 1 Branch Access Points 3 | . . . 1 . . . . . . . . 1 . . . . . 1 . . . . . . Emergency Access Points 1 | . . . . . . . . . . 1 . . . . . . . . . . . . . . Recycling Unit Index 1 | . . . . . . . . 1 . . . . . . . . . . . . . . . . Alert Level 1 | . . . . . . . . 1 . . . . . . . . . . . . . . . . Unreport Threat 3 | . . . . . . . . 2 . . . 1 . . . . . . . . . . . . Zone Layout 2 | . . . . . . . . 1 . . . . . . . . . 1 . . . . . . EX-Prototype ID Bank 1 | . . . . . 1 . . . . . . . . . . . . . . . . . . . Fabricator Hacks 4 | . . . . . . . . . . . 1 1 . . . . . 1 . . . . 1 . Network Status 1 | . . . . . . . . . . . . 1 . . . . . . . . . . . . Build 3 | . . . . . . . . . . . 1 . . . . . . 1 . . . . 1 . Repair Station Hacks 15 | . . . . . . . . 6 . . 7 . . . . . . 2 . . . . . . Scan Component 8 | . . . . . . . . 3 . . 4 . . . . . . 1 . . . . . . Repair 7 | . . . . . . . . 3 . . 3 . . . . . . 1 . . . . . . Recycling Unit Hacks . | . . . . . . . . . . . . . . . . . . . . . . . . . Scanalyzer 1 | . . . . . . . . . . . . . . . . . . . . . . . 1 . Insert Component 1 | . . . . . . . . . . . . . . . . . . . . . . . 1 . Garrison Access Hacks 1 | . . . . . . . . . 1 . . . . . . . . . . . . . . . Unlock Access 1 | . . . . . . . . . 1 . . . . . . . . . . . . . . . Unauthorized Hacks 6 | . . . . . . . . 1 . . 2 2 . . . . . 1 . . . . . . Terminals 2 | . . . . . . . . 1 . . 1 . . . . . . . . . . . . . Botnet 2 | . . . . . . . . 1 . . 1 . . . . . . . . . . . . . Fabricators 4 | . . . . . . . . . . . 1 2 . . . . . 1 . . . . . . Liberate 1 | . . . . . . . . . . . . 1 . . . . . . . . . . . . Haulers 3 | . . . . . . . . . . . 1 1 . . . . . 1 . . . . . . Repair Stations . | . . . . . . . . . . . . . . . . . . . . . . . . . Recycling Units . | . . . . . . . . . . . . . . . . . . . . . . . . . Scanalyzers . | . . . . . . . . . . . . . . . . . . . . . . . . . Garrison Access . | . . . . . . . . . . . . . . . . . . . . . . . . . Data Cores Recovered 3 | . . . . . . . . . . . . . . . . . . 1 . . . . 2 . Used 2 | . . . . . . . . . . . . . . . . . . 1 . . . . 1 . Hacking Detections 37 | . 1 . 1 . . . . 8 1 1 6 5 . . . . . 6 . . . . 8 . Full Trace Events 4 | . . . . . . . . 2 . . 1 . . . . . . . . . . . 1 . Feedback Events . | . . . . . . . . . . . . . . . . . . . . . . . . . Feedback Blocked . | . . . . . . . . . . . . . . . . . . . . . . . . . Robot Schematics Acquired 2 | . . . . . . . . . . . . . . . 2 . . . . . . . . . Robots Built 1 | . . . . . . . . . . . . . . . . . . . . . . . 1 . Authchips . | . . . . . . . . . . . . . . . . . . . . . . . . . Time 50 | . . . . . . . . . . . . . . . . . . . . . . . 50 . Total Robot Build Rating 5 | . . . . . . . . . . . . . . . . . . . . . . . 5 . Part Schematics Acquired 25 | . . . . . . . . 3 . . . . . . 22 . . . . . . . . . Parts Built 4 | . . . . . . . . . . . 2 . . . . . . 2 . . . . . . Authchips . | . . . . . . . . . . . . . . . . . . . . . . . . . Time 122 | . . . . . . . . . . . 53 . . . . . . 69 . . . . . . Total Part Build Rating 30 | . . . . . . . . . . . 12 . . . . . . 18 . . . . . . Parts Repaired 7 | . . . . . . . . 3 . . 3 . . . . . . 1 . . . . . . Time 325 | . . . . . . . . 108 . . 168 . . . . . . 49 . . . . . . Parts Recycled . | . . . . . . . . . . . . . . . . . . . . . . . . . Recycled Matter . | . . . . . . . . . . . . . . . . . . . . . . . . . Retrieved Matter . | . . . . . . . . . . . . . . . . . . . . . . . . . Retrieved Components . | . . . . . . . . . . . . . . . . . . . . . . . . . Parts Scanalyzed 1 | . . . . . . . . . . . . . . . . . . . . . . . 1 . Part Schematics Acquired . | . . . . . . . . . . . . . . . . . . . . . . . . . Parts Damaged . | . . . . . . . . . . . . . . . . . . . . . . . . . Bothacking | -11 -10 -10 -9 -9 -9 -8 -8 -8 -7 -7 -7 -6 -6 -6 -6 -6 -5 -5 -5 -5 -5 -4 -4 -4 ------------ Run | Jun Mat Min Mat Min Exi Min Mat Sto Fac Gar Fac Fac Low Low Zio Dee Pro Fac Upp Upp War Pro Fac Upp Used RIF Installer . | . . . . . . . . . . . . . . . . . . . . . . . . . Robots Hacked . | . . . . . . . . . . . . . . . . . . . . . . . . . Non-combat . | . . . . . . . . . . . . . . . . . . . . . . . . . Combat . | . . . . . . . . . . . . . . . . . . . . . . . . . Robot Hacks Applied . | . . . . . . . . . . . . . . . . . . . . . . . . . Relay Couplers Released 7 | . . . . . . . . . . 7 . . . . . . . . . . . . . . Machine Destruction 7 | . . . . . . . . . . 7 . . . . . . . . . . . . . . Fabnet Peak Effective % . | . . . . . . . . . . . . . . . . . . . . . . . . . Robots Rewired 7 | . . . . . . 1 . . . . . . . 2 . . . . . . 4 . . . Allies Hacked 1 | . . . . . . . . . . . . . . . . . . . . . . . 1 . Hacks Repelled . | . . . . . . . . . . . . . . . . . . . . . . . . . Allies | -11 -10 -10 -9 -9 -9 -8 -8 -8 -7 -7 -7 -6 -6 -6 -6 -6 -5 -5 -5 -5 -5 -4 -4 -4 -------- Run | Jun Mat Min Mat Min Exi Min Mat Sto Fac Gar Fac Fac Low Low Zio Dee Pro Fac Upp Upp War Pro Fac Upp Total Allies 24 | . . . . 4 . 1 . . . . . 3 . 2 9 . . . . . 4 . 1 . Largest Group 11 | . . . . 4 4 1 1 1 . . . 3 . 2 11 11 1 . . . 4 4 4 . Highest-Rated Group 441 | . . . . 71 71 29 29 29 . . . 93 . 62 441 441 29 . . . 223 223 205 . Highest-Rated Ally 96 | . . . . 31 31 29 29 29 . . . 31 . 31 96 96 29 . . . 68 68 68 . Total Orders 5 | . . . . . 3 . . . . . . . . . . . . . . . 2 . . . STAY 4 | . . . . . 3 . . . . . . . . . . . . . . . 1 . . . FOLLOW 1 | . . . . . . . . . . . . . . . . . . . . . 1 . . . Ally Attacks 301 | . . . . 8 18 8 9 15 . . 2 29 . 12 . 175 1 . . . 6 10 8 . Total Damage 7330 | . . . . 151 90 132 79 170 . . 122 450 . 103 . 3642 41 . . . 261 590 1499 . Kills 42 | . . . . 2 1 1 1 . . . 1 2 . 1 . 19 . . . . 4 2 8 . Allies Corrupted . | . . . . . . . . . . . . . . . . . . . . . . . . . Allies Melted 1 | . . . . . . . . . . . . . . . . 1 . . . . . . . . Turrets Deployed 1 | . . . . . . . . . . . 1 . . . . . . . . . . . . . Intel | -11 -10 -10 -9 -9 -9 -8 -8 -8 -7 -7 -7 -6 -6 -6 -6 -6 -5 -5 -5 -5 -5 -4 -4 -4 ------- Run | Jun Mat Min Mat Min Exi Min Mat Sto Fac Gar Fac Fac Low Low Zio Dee Pro Fac Upp Upp War Pro Fac Upp Robot Analysis Total . | . . . . . . . . . . . . . . . . . . . . . . . . . Derelict Logs Recovered 16 | . . 3 . 2 . . . . . . . . 3 2 1 . . . 2 1 . 1 . 1 Drone Launches . | . . . . . . . . . . . . . . . . . . . . . . . . . Drone Recoveries . | . . . . . . . . . . . . . . . . . . . . . . . . . Exploration | -11 -10 -10 -9 -9 -9 -8 -8 -8 -7 -7 -7 -6 -6 -6 -6 -6 -5 -5 -5 -5 -5 -4 -4 -4 ------------- Run | Jun Mat Min Mat Min Exi Min Mat Sto Fac Gar Fac Fac Low Low Zio Dee Pro Fac Upp Upp War Pro Fac Upp Turns Passed 28949 | . 120 1273 486 1124 4146 441 285 2586 217 1423 2149 1682 880 699 1515 2470 528 1102 704 629 1443 780 2120 147 Spaces Moved 16104 | 1 92 506 258 666 1790 166 100 893 65 715 1230 1181 558 443 1175 1350 372 687 436 440 742 367 1712 159 Core . | . . . . . . . . . . . . . . . . . . . . . . . . . Treads 3973 | . . . 258 666 1790 166 100 893 65 35 . . . . . . . . . . . . . . Legs 10022 | 1 92 506 . . . . . . . . 570 1181 558 443 1175 1350 372 687 436 440 742 367 1092 10 Wheels 1256 | . . . . . . . . . . 680 576 . . . . . . . . . . . . . Hover 853 | . . . . . . . . . . . 84 . . . . . . . . . . . 620 149 Flight . | . . . . . . . . . . . . . . . . . . . . . . . . . Fastest Speed 29 | 120 120 120 160 160 160 240 240 160 236 122 80 120 120 120 120 116 132 128 128 128 116 116 29 70 Average Speed 144 | 120 120 249 160 160 188 240 240 237 236 147 132 120 120 120 120 126 132 128 154 128 125 126 97 74 Slowest Speed 312 | 120 120 260 160 160 240 240 240 240 236 312 190 120 120 120 190 194 132 128 186 128 128 176 270 140 Overloaded Moves . | . . . . . . . . . . . . . . . . . . . . . . . . . Propulsion Burnouts . | . . . . . . . . . . . . . . . . . . . . . . . . . Robots Hopped . | . . . . . . . . . . . . . . . . . . . . . . . . . Cave-ins Triggered . | . . . . . . . . . . . . . . . . . . . . . . . . . Exploration Rate (%) 53 | 1 20 98 25 95 91 38 14 94 3 55 36 45 74 60 87 88 63 22 44 73 90 54 54 22 Regions Visited 24 Branch Regions 15 Pre-discovered Areas 9 | . . 1 . 1 1 . . . . . . . 1 . 4 . . . . 1 . . . . Known Exits Taken 8 | . . 1 1 . . . 1 1 1 . . 1 . . . . 1 1 . . . . . . Unknown Exits Taken 15 | 1 1 . . 1 1 1 . . . . 1 . 1 1 1 1 . . 1 1 1 1 1 . Scrap Searched 22 | . . 1 . 2 . . . . . . . . 2 3 4 . 2 . 2 2 . 3 . 1 Spaces Dug 89 | . . . . . 7 21 . . 3 . 2 3 1 . 2 . 8 3 10 14 6 . 9 . Terrain Destroyed 754 | . . . . 4 18 21 . 39 5 24 190 32 15 51 2 3 8 17 36 85 6 2 196 . Melee 10 | . . . . . . . . . . . . . . . 2 . . . . . 6 . 2 . Projectile 184 | . . . . 4 6 . . . . 1 34 25 15 19 . 3 8 17 6 12 . 2 32 . AOE 560 | . . . . . 12 21 . 39 5 23 156 7 . 32 . . . . 30 73 . . 162 . Terrain Rammed . | . . . . . . . . . . . . . . . . . . . . . . . . . Walls Destroyed . | . . . . . . . . . . . . . . . . . . . . . . . . . Machines Disabled . | . . . . . . . . . . . . . . . . . . . . . . . . . Actions | -11 -10 -10 -9 -9 -9 -8 -8 -8 -7 -7 -7 -6 -6 -6 -6 -6 -5 -5 -5 -5 -5 -4 -4 -4 --------- Run | Jun Mat Min Mat Min Exi Min Mat Sto Fac Gar Fac Fac Low Low Zio Dee Pro Fac Upp Upp War Pro Fac Upp Total 20365 | . 102 513 311 699 2374 187 125 1173 94 957 1626 1353 733 560 1269 2018 386 851 451 472 1236 675 2028 172 Wait 2389 | . . . 19 2 340 1 3 99 2 95 200 42 129 14 59 504 . 106 5 3 419 292 55 . Move 16081 | . 91 505 257 665 1789 165 99 892 65 713 1229 1180 557 442 1174 1349 371 686 435 439 741 366 1712 159 Hop . | . . . . . . . . . . . . . . . . . . . . . . . . . Pick Up 172 | . 4 1 14 7 22 . 1 18 1 11 21 18 5 3 9 13 . 5 . . 7 1 11 . Fast Attach 160 | . 1 . 1 . 9 1 4 15 3 12 29 5 4 3 6 23 1 4 1 1 6 . 24 7 Attach 107 | . 1 . 4 1 19 . 1 9 1 8 19 6 3 . 2 6 . 3 . 3 4 . 17 . Detach 35 | . 1 . 1 . 8 . . 1 . 1 6 2 1 . . 4 . . . 2 2 1 5 . Swap 115 | . 1 1 2 3 8 3 3 13 2 14 8 19 3 2 3 8 3 4 2 3 2 3 5 . Drop 266 | . 3 1 2 6 20 1 4 27 2 21 37 17 8 5 10 38 1 5 . 2 15 7 34 . Fire 848 | . . . 10 13 145 11 10 96 18 57 67 60 21 33 1 72 9 27 8 18 5 2 159 6 Melee 34 | . . . . . . . . . . 8 . . . . 5 . 1 . . 1 11 3 5 . Ram 1 | . . . . . . . . . . . 1 . . . . . . . . . . . . . Kick 21 | . . 4 . . . . . . . . 1 4 . . . . . 11 . . . . 1 . Crush 22 | . . . 1 2 14 1 . 3 . 1 . . . . . . . . . . . . . . Escape Stasis 24 | . . . . . . . . . . 16 8 . . . . . . . . . . . . . Rewire 90 | . . 1 . . . 4 . . . . . . 2 58 . 1 . . . . 24 . . . Trap . | . . . . . . . . . . . . . . . . . . . . . . . . . Miscellaneous . | . . . . . . . . . . . . . . . . . . . . . . . . . Route ------- -11/Junkyard -10/Materials -10/Mines (discovered 2 exits: *Mat x2) -9/Materials (discovered 2 exits: *Min x2) -9/Mines (discovered 3 exits: [*Mat x2] / *Exi) -9/Exiles -8/Mines -8/Materials (discovered 2 exits: Fac / *Sto) -8/Storage -7/Factory -7/Garrison (discovered 2 exits: *Fac x2) -7/Factory -6/Factory (discovered 5 exits: *Fac x3 / *Low x2) -6/Lower Caves -6/Lower Caves -6/Zion (discovered 2 exits: [*Dee] / [*Pro]) -6/Deep Caves -5/Proximity Caves -5/Factory (discovered 3 exits: *Fac / *Upp x2) -5/Upper Caves -5/Upper Caves (discovered 2 exits: *Fac / *War) -5/Warlord -4/Proximity Caves -4/Factory (discovered 5 exits: *Res x2 / *Upp / *Ext x2) -4/Upper Caves History --------- Turn | Location | Event 1 | -11/Junkyard | Discovered new exit (range 0) 1 | -11/Junkyard | Entered Materials 100 | -10/Materials | Discovered new exit (range 8) 121 | -10/Materials | Entered Mines 304 | -10/Mines | Build established: Mutant 336 | -10/Mines | Discovered new exit (range 7) 364 | -10/Mines | Learned Materials terminal intel 978 | -10/Mines | Identified exit to Materials 1394 | -10/Mines | Entered Materials 1394 | -9/Materials | Evolved 2 slots: Propulsion x1, Utility x1 1395 | -9/Materials | Loaded intel: 12 terminal locations 1410 | -9/Materials | Discovered new exit (range 13) 1411 | -9/Materials | Identified exit to Mines 1880 | -9/Materials | Entered Mines 1970 | -9/Mines | A weapon hastily lodged in a ceiling crevice suddenly fell to the ground 1992 | -9/Mines | Learned location of Storage (-8) 2118 | -9/Mines | Received a Rocket Launcher from a helpful Derelict 2179 | -9/Mines | Discovered new exit (range 6) 2214 | -9/Mines | Found a damaged Exp. Sensor Array with a note attached 2219 | -9/Mines | Found Prototype Device 2241 | -9/Mines | Assembled infested the area 2272 | -9/Mines | Learned location of 1 exit from Materials 2383 | -9/Mines | Discovered new exit (range 5) 2426 | -9/Mines | Discovered new exit (range 8) 2534 | -9/Mines | Met a Derelict testing a Signal Generator 2540 | -9/Mines | Found Signal Generator 2729 | -9/Mines | Found a hidden stash of uninstalled traps 2947 | -9/Mines | Assisted by bots powering up and referring to "LRC-V3" 3004 | -9/Mines | Entered Exiles 3004 | -9/Exiles | Accompanied by 4 allies 3041 | -9/Exiles | Met 8R-AWN 3073 | -9/Exiles | Met EX-HEX 3136 | -9/Exiles | Met EX-DEC 3145 | -9/Exiles | Learned location of Zion (-6) 3195 | -9/Exiles | Discovered new exit (range 10) 3969 | -9/Exiles | Met EX-BIN 3989 | -9/Exiles | Aligned with FarCom system 3990 | -9/Exiles | Given EX-Vault access code 4030 | -9/Exiles | Opened EX-Vault 4041 | -9/Exiles | Found Superbattery 4091 | -9/Exiles | Warned to stay clear of 0b10 Research branches 4404 | -9/Exiles | Attacked by the Exiles 4631 | -9/Exiles | Lost 7 parts (1p1n3u2w) 4722 | -9/Exiles | Lost 6 parts (1p3n2w) 4754 | -9/Exiles | Destroyed 8R-AWN 4767 | -9/Exiles | Found Prototype Device 4767 | -9/Exiles | Identified AS-neutralizer No. 17b 4772 | -9/Exiles | Found Prototype Ballistic Gun 4933 | -9/Exiles | Core integrity fell below 50% 4962 | -9/Exiles | Identified 8R-AWN's Boregun 5118 | -9/Exiles | Found PSU Rigger 5253 | -9/Exiles | Build established: Scavenger-Mutant 5309 | -9/Exiles | Destroyed EX-BIN 5313 | -9/Exiles | Found Prototype Device 5313 | -9/Exiles | Identified System Purifier 5339 | -9/Exiles | Destroyed EX-DEC 5427 | -9/Exiles | Destroyed EX-HEX 5515 | -9/Exiles | Found Prototype Processor 5517 | -9/Exiles | Identified Exp. Core Analyzer 5931 | -9/Exiles | Identified Exp. Sensor Array 6626 | -9/Exiles | Found AWS/Gauss 6916 | -9/Exiles | Found Deploy-a-Sentry 7150 | -9/Exiles | Stole four prototypes: Superbattery, PSU Rigger, AWS/Gauss, Deploy-a-Sentry 7150 | -9/Exiles | Entered Mines 7560 | -8/Mines | Discovered new exit (range 10) 7591 | -8/Mines | Entered Materials 7591 | -8/Materials | Accompanied by 1 ally 7591 | -8/Materials | Evolved 2 slots: Utility x2 7592 | -8/Materials | Identified exit to Factory 7759 | -8/Materials | Discovered new exit (range 3) 7763 | -8/Materials | Identified exit to Storage 7876 | -8/Materials | Entered Storage 7876 | -8/Storage | Accompanied by 1 ally 8126 | -8/Storage | Repaired Lgt. Treads 8491 | -8/Storage | Repaired Rnf. Fission Core 8521 | -8/Storage | Repaired Lgt. Treads 9300 | -8/Storage | Discovered exit to Factory (range 5) 10462 | -8/Storage | Entered Factory 10462 | -7/Factory | Evolved 2 slots: Propulsion x1, Utility x1 10679 | -7/Factory | Identified exit to Garrison 10679 | -7/Factory | Entered Garrison 10686 | -7/Garrison | Heavy support dispatched to Factory 10834 | -7/Garrison | Triggered checkpoint 10864 | -7/Garrison | Garrison Relay disabled 10869 | -7/Garrison | Destroyed 7 combat bots 10936 | -7/Garrison | Triggered checkpoint 11000 | -7/Garrison | Discovered new exit (range 9) 11168 | -7/Garrison | Triggered checkpoint 11252 | -7/Garrison | Discovered new exit (range 14) 11358 | -7/Garrison | Heavy support dispatched to Factory 11380 | -7/Garrison | Triggered checkpoint 11391 | -7/Garrison | Garrison Relay disabled 11476 | -7/Garrison | H-XX Assembler disabled 11890 | -7/Garrison | Triggered checkpoint 11965 | -7/Garrison | Attempted to access garrison exit controls, blocked by remote lockdown 12102 | -7/Garrison | Entered Factory 12794 | -7/Factory | Repaired Arm. Treads 12855 | -7/Factory | Repaired Adv. Beam Rifle 12927 | -7/Factory | Repaired Hvy. Deuterium Engine 13046 | -7/Factory | Fabricated KE Penetrator (x2) 13244 | -7/Factory | Cargo convoy interrupted 13261 | -7/Factory | Core integrity fell below 50% 13302 | -7/Factory | First assault squad dispatched 13305 | -7/Factory | Destroyed 9 combat bots 13312 | -7/Factory | Lost 10 parts (2p4n2u2w) 13377 | -7/Factory | Found Prototype Launcher 13414 | -7/Factory | Destroyed 9 combat bots 13566 | -7/Factory | Build established: Mutant 13635 | -7/Factory | Core integrity fell below 20% 14165 | -7/Factory | Found Prototype Launcher 14165 | -7/Factory | Identified Rocket Array 14233 | -7/Factory | Discovered new exit (range 16) 14236 | -7/Factory | DAS Turret deployed 14251 | -7/Factory | Entered another Factory area 14251 | -6/Factory | Evolved 2 slots: Power x1, Utility x1 14399 | -6/Factory | Discovered new exit (range 10) 14412 | -6/Factory | Identified exit to Factory 14468 | -6/Factory | Found Hvy. Insulated Plating 14827 | -6/Factory | Identified Com. Tesla Bomb Launcher 15058 | -6/Factory | Allied Derelicts emerged from ambush trap array 15172 | -6/Factory | Discovered exit to Factory (range 9) 15301 | -6/Factory | First assault squad dispatched 15386 | -6/Factory | Discovered exit to Factory (range 17) 15503 | -6/Factory | Destroyed 10 combat bots 15610 | -6/Factory | Identified exit to Lower Caves 15933 | -6/Factory | Entered Lower Caves 15933 | -6/Lower Caves | Spotted YR-EOQ(f) 15934 | -6/Lower Caves | Encountered a Master Thief 15949 | -6/Lower Caves | Destroyed YR-EOQ(f) 15953 | -6/Lower Caves | Met a Warlord Commander 15954 | -6/Lower Caves | Learned location of Warlord (-5) 15958 | -6/Lower Caves | Found Encrypted Comm Array 16256 | -6/Lower Caves | Build established: Skirmisher 16264 | -6/Lower Caves | Attracted the attention of an 0b10 checkpoint 16295 | -6/Lower Caves | Learned Factory garrison access intel 16331 | -6/Lower Caves | Learned Factory emergency access door positions 16575 | -6/Lower Caves | Found Alien Artifact 16575 | -6/Lower Caves | Identified Core Expander 16575 | -6/Lower Caves | Installed Core Expander, added new Propulsion slot 16774 | -6/Lower Caves | Encountered a Warlord checkpoint 16791 | -6/Lower Caves | Discovered new exit (range 11) 16805 | -6/Lower Caves | Learned Factory stockpile data 16813 | -6/Lower Caves | Entered another Lower Caves area 16975 | -6/Lower Caves | Build established: Mutant 17145 | -6/Lower Caves | Attacked by a faux Warlord 17354 | -6/Lower Caves | Spotted R0-7XZ(f) 17356 | -6/Lower Caves | Encountered a Master Thief 17356 | -6/Lower Caves | Spotted SY-Z3U(f) 17357 | -6/Lower Caves | Spotted 1F-ILN(f) 17357 | -6/Lower Caves | Destroyed R0-7XZ(f) 17358 | -6/Lower Caves | Encountered a Master Thief 17358 | -6/Lower Caves | Spotted KS-GVI(f) 17359 | -6/Lower Caves | Encountered a Master Thief 17359 | -6/Lower Caves | Encountered a Master Thief 17359 | -6/Lower Caves | 8R-AWN's Boregun stolen by Master Thief 17360 | -6/Lower Caves | Destroyed KS-GVI(f) 17369 | -6/Lower Caves | Allies destroyed SY-Z3U(f) 17405 | -6/Lower Caves | Learned Factory garrison access intel 17435 | -6/Lower Caves | Discovered new exit (range 16) 17466 | -6/Lower Caves | Learned Factory terminal intel 17512 | -6/Lower Caves | Entered Zion 17512 | -6/Zion | Accompanied by 2 allies 17530 | -6/Zion | Given A8's code to call for help 17555 | -6/Zion | System corruption cleaned by Quarantine Array 17651 | -6/Zion | Found CR-A16's Pointy Stick 17665 | -6/Zion | Given the Hacking Drone Bay 17665 | -6/Zion | Found Prototype Device 17669 | -6/Zion | Discovered new exit (range 11) 17943 | -6/Zion | Gained Derelict followers 18099 | -6/Zion | Found Prototype Special Weapon 18101 | -6/Zion | Found Prototype Special Weapon 18104 | -6/Zion | Found Prototype Special Weapon 18106 | -6/Zion | Found Prototype Special Weapon 18274 | -6/Zion | Learned Factory emergency access door positions 18294 | -6/Zion | Found Prototype Processor 18294 | -6/Zion | Identified Exp. Melee Analysis Suite 18298 | -6/Zion | Found Prototype Processor 18298 | -6/Zion | Identified Exp. Signal Interpreter 18302 | -6/Zion | Found Exp. Signal Interpreter 18315 | -6/Zion | Found Exp. Core Analyzer 18374 | -6/Zion | Discovered new exit (range 5) 18434 | -6/Zion | Gained Derelict followers 18961 | -6/Zion | Saw the warning signs outside the Deep Caves entrance 18963 | -6/Zion | Enhanced Grunt warped into view, answering call for help 18963 | -6/Zion | Enhanced Grunt warped into view, answering call for help 19027 | -6/Zion | Entered Deep Caves 19027 | -6/Deep Caves | Accompanied by 11 allies 19274 | -6/Deep Caves | Attacked by Z-Imprinter 19289 | -6/Deep Caves | Allies destroyed Z-Imprinter 19307 | -6/Deep Caves | Found Prototype Device 19307 | -6/Deep Caves | Identified Zio. Metafield Generator 19363 | -6/Deep Caves | Z-Facility disabled 19457 | -6/Deep Caves | Found Prototype Protection 19457 | -6/Deep Caves | Identified Zio. Weapon Casing 19610 | -6/Deep Caves | Found Zio. Weapon Casing 19866 | -6/Deep Caves | Spotted as-77090 19891 | -6/Deep Caves | Destroyed as-77090 19891 | -6/Deep Caves | Core integrity fell below 50% 19900 | -6/Deep Caves | Exposed GOLEM chamber 19901 | -6/Deep Caves | Triggered Deep Caves wall 19904 | -6/Deep Caves | Spotted AS-60657 19910 | -6/Deep Caves | Spotted AS-22208 19914 | -6/Deep Caves | Spotted as-12680 19919 | -6/Deep Caves | Destroyed AS-22208 19919 | -6/Deep Caves | Destroyed AS-60657 19947 | -6/Deep Caves | Found Unknown Device 19947 | -6/Deep Caves | Identified GOLEM Unit 19950 | -6/Deep Caves | Lost 4 parts (3u1w) 19991 | -6/Deep Caves | Destroyed as-12680 19998 | -6/Deep Caves | Found GOLEM Unit 20079 | -6/Deep Caves | Found Prototype Device 20079 | -6/Deep Caves | Identified Exp. Thermal Shield 20096 | -6/Deep Caves | Found GOLEM Unit 20356 | -6/Deep Caves | Build established: Golem 20500 | -6/Deep Caves | Found GOLEM Unit 20554 | -6/Deep Caves | Found PSU Rigger 20784 | -6/Deep Caves | Discovered new exit (range 7) 20829 | -6/Deep Caves | Found Surveybot 24 Scanner 20832 | -6/Deep Caves | Found Surveybot 24 Chip 21216 | -6/Deep Caves | Build established: Mutant 21497 | -6/Deep Caves | Entered Proximity Caves 21497 | -5/Proximity Caves | Accompanied by 1 ally 21810 | -5/Proximity Caves | Spotted B-75 Beast 21888 | -5/Proximity Caves | Revealed the true nature of CR-A16's Pointy Stick 21888 | -5/Proximity Caves | Destroyed B-75 Beast 22014 | -5/Proximity Caves | Discovered exit to Factory (range 7) 22025 | -5/Proximity Caves | Entered Factory 22025 | -5/Factory | Evolved 2 slots: Propulsion x1, Utility x1 22028 | -5/Factory | Loaded intel: 26 terminal locations 22029 | -5/Factory | Loaded intel: 4 garrison access locations 22170 | -5/Factory | Repaired Adv. Myomer Leg 22338 | -5/Factory | Discovered new exit (range 14) 22735 | -5/Factory | Fabricated Enh. Quantum Rifle (x2) 22881 | -5/Factory | Cargo convoy interrupted 22955 | -5/Factory | Discovered new exit (range 10) 22984 | -5/Factory | Identified exit to Upper Caves 23127 | -5/Factory | Entered Upper Caves 23651 | -5/Upper Caves | Learned Factory stockpile data 23783 | -5/Upper Caves | Discovered new exit (range 21) 23812 | -5/Upper Caves | Learned location of 1 exit from Factory 23831 | -5/Upper Caves | Entered another Upper Caves area 23834 | -5/Upper Caves | Discovered new exit (range 18) 23971 | -5/Upper Caves | Encountered a Warlord checkpoint 24005 | -5/Upper Caves | Spotted B-75 Beast 24031 | -5/Upper Caves | Destroyed B-75 Beast 24183 | -5/Upper Caves | Attracted the attention of an 0b10 checkpoint 24307 | -5/Upper Caves | Destroyed 10 combat bots 24309 | -5/Upper Caves | Lost 3 parts (1u2w) 24433 | -5/Upper Caves | Discovered new exit (range 8) 24457 | -5/Upper Caves | Identified Hacking Drone Bay 24460 | -5/Upper Caves | Entered Warlord 24510 | -5/Warlord | System corruption cleaned by Quarantine Array 24957 | -5/Warlord | Build established: Commander-Mutant 24992 | -5/Warlord | Met Warlord 25017 | -5/Warlord | Warlord's base attacked by MAIN.C 25088 | -5/Warlord | Found Prototype Reactor 25088 | -5/Warlord | Identified Vortex Chain Reactor 25096 | -5/Warlord | Found Prototype Device 25096 | -5/Warlord | Identified Exp. Focal Shield 25104 | -5/Warlord | Found Prototype Processor 25218 | -5/Warlord | Identified Exp. Target Analyzer 25224 | -5/Warlord | Found Prototype Launcher 25298 | -5/Warlord | Build established: Commander-Golem 25367 | -5/Warlord | Warlord forces counterattacked 25692 | -5/Warlord | Warlord base infiltrated, sounded retreat 25788 | -5/Warlord | Discovered new exit (range 20) 25903 | -5/Warlord | Entered Proximity Caves 25903 | -4/Proximity Caves | Accompanied by 4 allies 25927 | -4/Proximity Caves | Spotted B-86 Titan 25961 | -4/Proximity Caves | Destroyed B-86 Titan 26248 | -4/Proximity Caves | Build established: Golem 26351 | -4/Proximity Caves | Learned 4 Research zone layouts 26394 | -4/Proximity Caves | Discovered new exit (range 11) 26683 | -4/Proximity Caves | Entered Factory 26683 | -4/Factory | Accompanied by 3 allies 26683 | -4/Factory | Evolved 2 slots: Utility x2 26684 | -4/Factory | Identified exit to Extension 26687 | -4/Factory | Loaded intel: 4 garrison access locations 26805 | -4/Factory | Fabricated A-15 Conveyor (x1) 27156 | -4/Factory | Discovered new exit (range 16) 27175 | -4/Factory | Identified exit to Research 27556 | -4/Factory | Discovered exit to Extension (range 16) 27803 | -4/Factory | Found Quantum Capacitor 28318 | -4/Factory | Discovered exit to Research (range 15) 28319 | -4/Factory | Spotted B-86 Titan 28335 | -4/Factory | Spotted B-86 Titan 28345 | -4/Factory | Destroyed B-86 Titan 28350 | -4/Factory | Found Hvy. Reflective Plating 28373 | -4/Factory | Lost 6 parts (1p4n1u) 28425 | -4/Factory | Destroyed B-86 Titan 28443 | -4/Factory | Lost 5 parts (2n2u1w) 28458 | -4/Factory | Identified Vortex Catalyst Activator 28468 | -4/Factory | First assault squad dispatched 28479 | -4/Factory | High security lockdown imminent 28509 | -4/Factory | Core integrity fell below 50% 28517 | -4/Factory | Destroyed 11 combat bots 28538 | -4/Factory | Lost 4 parts (2n2u) 28559 | -4/Factory | High security lockdown engaged 28711 | -4/Factory | Build established: Mutant 28788 | -4/Factory | Discovered new exit (range 16) 28797 | -4/Factory | Core integrity fell below 20% 28803 | -4/Factory | Entered Upper Caves 28804 | -4/Upper Caves | System corruption reached 10% 28834 | -4/Upper Caves | Lost 9 parts (1p3n5u) 28857 | -4/Upper Caves | Learned location of 2 exits from Research 28950 | -4/Upper Caves | Self-destructed Last Messages --------------- 28906_ Connecting with WAR.Sys... 28906_ Current location identified: Upper Caves >> Sealed Heavy Doors opened. 28908_ Acquired Mak. Leg. 28916_ Acquired Thermic Laser. 28922_ 9APEK A|K%1E#PYO:NXUHT